[Event "Early-Titled-Tuesday-Blitz-August-29-2023"]
[Site "Chess.com"]
[Date "2023.08.29"]
[Round "10"]
[White "noblerone"]
[Black "Dmitry_Konenkin"]
[Result "1-0"]
[WhiteElo "2547"]
[BlackElo "2392"]
[TimeControl "180+1"]
[EndTime "9:53:10 PDT"]
[Termination "noblerone won by resignation"]

1. d4 {[%clk 0:03:00.9]} 1... d6 {[%clk 0:02:57.9]} 2. Nf3 {[%clk 0:03:01.8]}
2... f5 {[%clk 0:02:57]} 3. h4 {[%clk 0:02:59.7]} 3... Nf6 {[%clk 0:02:56.9]} 4.
Bf4 {[%clk 0:02:57.9]} 4... c6 {[%clk 0:02:49.4]} 5. c3 {[%clk 0:02:56]} 5...
Qb6 {[%clk 0:02:48.2]} 6. Qb3 {[%clk 0:02:55.5]} 6... Na6 {[%clk 0:02:30.2]} 7.
Nbd2 {[%clk 0:02:54.1]} 7... Bd7 {[%clk 0:02:27.3]} 8. e3 {[%clk 0:02:51.8]}
8... Nc7 {[%clk 0:02:22.1]} 9. Qc2 {[%clk 0:02:47.2]} 9... Ncd5 {[%clk
0:02:15.3]} 10. Bh2 {[%clk 0:02:44.6]} 10... e6 {[%clk 0:02:06.7]} 11. a3 {[%clk
0:02:36.6]} 11... Ng4 {[%clk 0:01:58.7]} 12. c4 {[%clk 0:02:30.8]} 12... Ndf6
{[%clk 0:01:58]} 13. Bf4 {[%clk 0:02:22.7]} 13... Nh5 {[%clk 0:01:47]} 14. Bh2
{[%clk 0:02:20.5]} 14... Nxh2 {[%clk 0:01:44.7]} 15. Rxh2 {[%clk 0:02:20.7]}
15... Be7 {[%clk 0:01:41.1]} 16. Bd3 {[%clk 0:02:14.7]} 16... g6 {[%clk
0:01:27.6]} 17. Rh1 {[%clk 0:02:10.6]} 17... Bf6 {[%clk 0:01:18.2]} 18. Ng5
{[%clk 0:02:07.3]} 18... e5 {[%clk 0:01:14.7]} 19. dxe5 {[%clk 0:01:59.7]} 19...
dxe5 {[%clk 0:01:15.6]} 20. c5 {[%clk 0:01:56.5]} 20... Qc7 {[%clk 0:01:12.6]}
21. Nc4 {[%clk 0:01:50.4]} 21... O-O {[%clk 0:00:57.9]} 22. Nd6 {[%clk
0:01:46.7]} 22... b5 {[%clk 0:00:49]} 23. Be2 {[%clk 0:01:31.1]} 23... Ng7
{[%clk 0:00:43]} 24. Qb3+ {[%clk 0:01:28]} 24... Ne6 {[%clk 0:00:19.4]} 25. Nxe6
{[%clk 0:01:25.1]} 25... Bxe6 {[%clk 0:00:19.7]} 26. Qxe6+ {[%clk 0:01:25.1]}
26... Kg7 {[%clk 0:00:20.6]} 27. h5 {[%clk 0:01:19]} 27... e4 {[%clk 0:00:19.9]}
28. hxg6 {[%clk 0:01:12.2]} 28... hxg6 {[%clk 0:00:20.8]} 29. Qb3 {[%clk
0:01:07.9]} 29... Qe7 {[%clk 0:00:18.5]} 30. O-O-O {[%clk 0:01:01.3]} 30... Qe5
{[%clk 0:00:18.9]} 31. Rh3 {[%clk 0:00:51.9]} 31... Qxc5+ {[%clk 0:00:18.1]} 32.
Qc2 {[%clk 0:00:50.2]} 32... Qe5 {[%clk 0:00:15.8]} 33. Nb7 {[%clk 0:00:45.3]}
33... Rab8 {[%clk 0:00:12.7]} 34. Nc5 {[%clk 0:00:41]} 34... Rbd8 {[%clk
0:00:10.4]} 35. Nd7 {[%clk 0:00:38.9]} 35... Qe7 {[%clk 0:00:03.9]} 36. Nxf8
{[%clk 0:00:37.3]} 36... Rxf8 {[%clk 0:00:04.8]} 37. Rdh1 {[%clk 0:00:36.7]}
37... Kf7 {[%clk 0:00:03.3]} 38. Rh7+ {[%clk 0:00:35.8]} 38... Bg7 {[%clk
0:00:04.2]} 39. Qb3+ {[%clk 0:00:35.4]} 39... Ke8 {[%clk 0:00:03.4]} 40. Qc2
{[%clk 0:00:35.2]} 40... c5 {[%clk 0:00:03.4]} 41. Bxb5+ {[%clk 0:00:34.6]}
41... Kd8 {[%clk 0:00:04]} 42. Rd1+ {[%clk 0:00:33.4]} 1-0

[Event "Early-Titled-Tuesday-Blitz-August-29-2023"]
[Site "Chess.com"]
[Date "2023.08.29"]
[Round "10"]
[White "Semetey"]
[Black "ProfessorChess101"]
[Result "1-0"]
[WhiteElo "2592"]
[BlackElo "2421"]
[TimeControl "180+1"]
[EndTime "9:53:12 PDT"]
[Termination "Semetey won by resignation"]

1. e4 {[%clk 0:02:56.6]} 1... c5 {[%clk 0:02:58.3]} 2. Nf3 {[%clk 0:02:53.7]}
2... e6 {[%clk 0:02:58]} 3. d4 {[%clk 0:02:53.1]} 3... cxd4 {[%clk 0:02:58.5]}
4. Nxd4 {[%clk 0:02:53.8]} 4... Nc6 {[%clk 0:02:59.2]} 5. Nc3 {[%clk 0:02:53.8]}
5... Qc7 {[%clk 0:02:59.7]} 6. g3 {[%clk 0:02:51.9]} 6... a6 {[%clk 0:02:52]} 7.
Bg2 {[%clk 0:02:51.5]} 7... Nge7 {[%clk 0:02:52.6]} 8. Nb3 {[%clk 0:02:41]} 8...
h5 {[%clk 0:02:47.9]} 9. Bf4 {[%clk 0:02:35.8]} 9... e5 {[%clk 0:02:43.1]} 10.
Bg5 {[%clk 0:02:33.8]} 10... d6 {[%clk 0:02:39.7]} 11. h3 {[%clk 0:02:24.9]}
11... Be6 {[%clk 0:02:34.7]} 12. Nd5 {[%clk 0:02:14.3]} 12... Bxd5 {[%clk
0:02:24.7]} 13. exd5 {[%clk 0:02:14]} 13... Na5 {[%clk 0:02:24.2]} 14. O-O
{[%clk 0:02:08.1]} 14... f6 {[%clk 0:02:12.7]} 15. Nxa5 {[%clk 0:01:53.6]} 15...
fxg5 {[%clk 0:02:03.8]} 16. Nb3 {[%clk 0:01:52]} 16... Ng8 {[%clk 0:01:57.3]}
17. c4 {[%clk 0:01:35.7]} 17... Nf6 {[%clk 0:01:52.4]} 18. Rc1 {[%clk
0:01:31.7]} 18... b6 {[%clk 0:01:43.7]} 19. Nd2 {[%clk 0:01:28.9]} 19... a5
{[%clk 0:01:35.3]} 20. Ne4 {[%clk 0:01:27.9]} 20... Nxe4 {[%clk 0:01:21.2]} 21.
Bxe4 {[%clk 0:01:20.2]} 21... Be7 {[%clk 0:01:20.6]} 22. Bg6+ {[%clk 0:01:17.8]}
22... Kd8 {[%clk 0:01:20.2]} 23. Bxh5 {[%clk 0:01:16.9]} 23... Qc5 {[%clk
0:01:16]} 24. Bg4 {[%clk 0:01:12.7]} 24... Kc7 {[%clk 0:01:15.4]} 25. a3 {[%clk
0:01:07.7]} 25... Rhf8 {[%clk 0:01:08.7]} 26. Qc2 {[%clk 0:00:57.2]} 26... Bf6
{[%clk 0:00:52.7]} 27. b4 {[%clk 0:00:50.7]} 27... axb4 {[%clk 0:00:49.7]} 28.
axb4 {[%clk 0:00:51.6]} 28... Qxb4 {[%clk 0:00:46.1]} 29. Rb1 {[%clk 0:00:51.7]}
29... Qc5 {[%clk 0:00:46.3]} 30. Rb5 {[%clk 0:00:49]} 30... Qd4 {[%clk
0:00:43.5]} 31. Rd1 {[%clk 0:00:48.5]} 31... Ra1 {[%clk 0:00:44.1]} 32. Rxa1
{[%clk 0:00:43.8]} 32... Qxa1+ {[%clk 0:00:45]} 33. Kg2 {[%clk 0:00:44.4]} 33...
Qd4 {[%clk 0:00:34.7]} 34. Qf5 {[%clk 0:00:43.1]} 34... Rd8 {[%clk 0:00:31.3]}
35. Qe6 {[%clk 0:00:35.9]} 35... Qe4+ {[%clk 0:00:20.1]} 36. Kh2 {[%clk
0:00:35.4]} 36... Qd4 {[%clk 0:00:20.7]} 37. Qf7+ {[%clk 0:00:35.4]} 37... Kb8
{[%clk 0:00:20.7]} 38. Kg1 {[%clk 0:00:34.1]} 38... e4 {[%clk 0:00:14.4]} 39. c5
{[%clk 0:00:29.2]} 39... dxc5 {[%clk 0:00:09.8]} 40. Rxb6+ {[%clk 0:00:28.6]}
1-0

[Event "Early-Titled-Tuesday-Blitz-August-29-2023"]
[Site "Chess.com"]
[Date "2023.08.29"]
[Round "10"]
[White "temiksmozg"]
[Black "ChainedDowntohell"]
[Result "0-1"]
[WhiteElo "2637"]
[BlackElo "2536"]
[TimeControl "180+1"]
[EndTime "9:53:20 PDT"]
[Termination "ChainedDowntohell won by checkmate"]

1. e4 {[%clk 0:03:00.9]} 1... c5 {[%clk 0:02:59.1]} 2. Nf3 {[%clk 0:02:50.7]}
2... d6 {[%clk 0:02:53.9]} 3. Bb5+ {[%clk 0:02:50.1]} 3... Nd7 {[%clk
0:02:52.9]} 4. d4 {[%clk 0:02:49.1]} 4... cxd4 {[%clk 0:02:49.6]} 5. Qxd4 {[%clk
0:02:50]} 5... a6 {[%clk 0:02:49.5]} 6. Bxd7+ {[%clk 0:02:44.5]} 6... Bxd7
{[%clk 0:02:50.4]} 7. c4 {[%clk 0:02:44.6]} 7... e5 {[%clk 0:02:45.8]} 8. Qd3
{[%clk 0:02:39]} 8... Be7 {[%clk 0:02:42.5]} 9. Nc3 {[%clk 0:02:38.7]} 9... Rc8
{[%clk 0:02:38.6]} 10. Nd5 {[%clk 0:02:35]} 10... Be6 {[%clk 0:02:21.5]} 11. Be3
{[%clk 0:02:26.2]} 11... Nf6 {[%clk 0:02:15.8]} 12. O-O {[%clk 0:02:24.2]} 12...
Nxd5 {[%clk 0:02:09.5]} 13. cxd5 {[%clk 0:02:20.8]} 13... Bd7 {[%clk 0:02:09.7]}
14. Rfc1 {[%clk 0:02:19.8]} 14... O-O {[%clk 0:01:59.3]} 15. Nd2 {[%clk
0:02:19]} 15... Qa5 {[%clk 0:01:30]} 16. Nc4 {[%clk 0:02:13]} 16... Qb5 {[%clk
0:01:29]} 17. b3 {[%clk 0:02:12.9]} 17... f5 {[%clk 0:01:27.5]} 18. f3 {[%clk
0:02:03.9]} 18... fxe4 {[%clk 0:01:24.6]} 19. fxe4 {[%clk 0:02:04.8]} 19... Bg4
{[%clk 0:01:11.8]} 20. Qc3 {[%clk 0:01:46.6]} 20... Qe8 {[%clk 0:01:03]} 21. Qd2
{[%clk 0:01:38.5]} 21... Qg6 {[%clk 0:00:57.6]} 22. Re1 {[%clk 0:01:12.1]} 22...
Bf3 {[%clk 0:00:48.1]} 23. h4 {[%clk 0:00:34.6]} 23... Bxe4 {[%clk 0:00:45.1]}
24. Bg5 {[%clk 0:00:35]} 24... Bxg5 {[%clk 0:00:36.6]} 25. hxg5 {[%clk
0:00:35.9]} 25... Rf4 {[%clk 0:00:33]} 26. Rac1 {[%clk 0:00:18.1]} 26... Rcf8
{[%clk 0:00:32.7]} 27. Re2 {[%clk 0:00:15.8]} 27... Qxg5 {[%clk 0:00:30.7]} 28.
Nxd6 {[%clk 0:00:15.6]} 28... Bg6 {[%clk 0:00:17.7]} 29. Rce1 {[%clk 0:00:13.2]}
29... Qh6 {[%clk 0:00:15.2]} 30. Nc4 {[%clk 0:00:12.7]} 30... e4 {[%clk
0:00:12.6]} 31. Qe3 {[%clk 0:00:11.4]} 31... Qh5 {[%clk 0:00:10.1]} 32. g3
{[%clk 0:00:04.4]} 32... Rf3 {[%clk 0:00:09.5]} 33. d6 {[%clk 0:00:03.3]} 33...
Qh3 {[%clk 0:00:07.6]} 34. Qg5 {[%clk 0:00:02.6]} 34... Rf1+ {[%clk 0:00:07.5]}
35. Rxf1 {[%clk 0:00:02.3]} 35... Rxf1# {[%clk 0:00:08.4]} 0-1

[Event "Early-Titled-Tuesday-Blitz-August-29-2023"]
[Site "Chess.com"]
[Date "2023.08.29"]
[Round "10"]
[White "Maus7"]
[Black "crazy_m_attack"]
[Result "1-0"]
[WhiteElo "2492"]
[BlackElo "2340"]
[TimeControl "180+1"]
[EndTime "9:53:21 PDT"]
[Termination "Maus7 won by resignation"]

1. e4 {[%clk 0:03:00.9]} 1... e5 {[%clk 0:02:59.7]} 2. Nf3 {[%clk 0:03:01.5]}
2... Nc6 {[%clk 0:02:59.7]} 3. Bb5 {[%clk 0:03:00.3]} 3... a6 {[%clk 0:02:59.5]}
4. Ba4 {[%clk 0:02:59.9]} 4... Nf6 {[%clk 0:03:00]} 5. O-O {[%clk 0:03:00.5]}
5... Be7 {[%clk 0:03:00.2]} 6. Re1 {[%clk 0:02:58.9]} 6... b5 {[%clk 0:03:00.5]}
7. Bb3 {[%clk 0:02:59.2]} 7... O-O {[%clk 0:03:01.2]} 8. a4 {[%clk 0:02:58]}
8... Rb8 {[%clk 0:03:00.2]} 9. d3 {[%clk 0:02:49.1]} 9... d6 {[%clk 0:02:54.8]}
10. axb5 {[%clk 0:02:42.1]} 10... axb5 {[%clk 0:02:54.8]} 11. Bg5 {[%clk
0:02:43]} 11... Be6 {[%clk 0:02:50.8]} 12. Bxe6 {[%clk 0:02:18.2]} 12... fxe6
{[%clk 0:02:51.7]} 13. Nc3 {[%clk 0:02:19]} 13... Qe8 {[%clk 0:02:25.9]} 14. Ne2
{[%clk 0:02:08.6]} 14... Qg6 {[%clk 0:02:21.4]} 15. Ng3 {[%clk 0:02:04.4]} 15...
h6 {[%clk 0:02:13.9]} 16. Be3 {[%clk 0:01:55.3]} 16... d5 {[%clk 0:02:10.3]} 17.
Ra6 {[%clk 0:01:49.2]} 17... Qe8 {[%clk 0:01:54]} 18. exd5 {[%clk 0:01:25.1]}
18... exd5 {[%clk 0:01:54.9]} 19. Nf5 {[%clk 0:01:25.4]} 19... Bd8 {[%clk
0:01:32.9]} 20. Bc5 {[%clk 0:01:20.2]} 20... Rf7 {[%clk 0:01:29]} 21. d4 {[%clk
0:01:16.9]} 21... e4 {[%clk 0:01:23.2]} 22. Rxc6 {[%clk 0:00:54.4]} 22... Qxc6
{[%clk 0:01:21.9]} 23. Ne5 {[%clk 0:00:54.9]} 23... Qe6 {[%clk 0:01:10.6]} 24.
Nxf7 {[%clk 0:00:55.8]} 24... Kxf7 {[%clk 0:01:08.4]} 25. Ne3 {[%clk 0:00:54.4]}
25... c6 {[%clk 0:01:00.5]} 26. Qa1 {[%clk 0:00:53.3]} 26... Bc7 {[%clk
0:00:52.9]} 27. Qa7 {[%clk 0:00:50.9]} 27... Qc8 {[%clk 0:00:41.3]} 28. Ra1
{[%clk 0:00:31.8]} 28... Nd7 {[%clk 0:00:31.8]} 29. Nf5 {[%clk 0:00:20]} 29...
Nxc5 {[%clk 0:00:31]} 30. Nd6+ {[%clk 0:00:20]} 30... Kg8 {[%clk 0:00:20.6]} 31.
Nxc8 {[%clk 0:00:20.9]} 31... Ne6 {[%clk 0:00:21]} 32. Ne7+ {[%clk 0:00:19.9]}
32... Kf8 {[%clk 0:00:16.2]} 33. Nxc6 {[%clk 0:00:20.8]} 33... Re8 {[%clk
0:00:12.1]} 34. Nb4 {[%clk 0:00:17.1]} 34... Bd6 {[%clk 0:00:11.3]} 35. Nxd5
{[%clk 0:00:16.6]} 35... Rc8 {[%clk 0:00:06.3]} 36. Qd7 {[%clk 0:00:16]} 1-0

[Event "Early-Titled-Tuesday-Blitz-August-29-2023"]
[Site "Chess.com"]
[Date "2023.08.29"]
[Round "10"]
[White "dennisodessa"]
[Black "CSB7"]
[Result "0-1"]
[WhiteElo "2531"]
[BlackElo "2694"]
[TimeControl "180+1"]
[EndTime "9:53:29 PDT"]
[Termination "CSB7 won on time"]

1. d4 {[%clk 0:03:00.9]} 1... Nf6 {[%clk 0:03:00.5]} 2. c4 {[%clk 0:03:00.9]}
2... a6 {[%clk 0:03:01.2]} 3. Nc3 {[%clk 0:02:55.1]} 3... b5 {[%clk 0:03:01.8]}
4. cxb5 {[%clk 0:02:56]} 4... axb5 {[%clk 0:03:02.7]} 5. Nxb5 {[%clk 0:02:56]}
5... e5 {[%clk 0:03:03.3]} 6. dxe5 {[%clk 0:02:47.8]} 6... Ne4 {[%clk
0:03:03.6]} 7. Nc3 {[%clk 0:02:48.2]} 7... Bb4 {[%clk 0:03:03.4]} 8. Bd2 {[%clk
0:02:48.2]} 8... Nxd2 {[%clk 0:03:03.3]} 9. Qxd2 {[%clk 0:02:49.1]} 9... O-O
{[%clk 0:03:03.5]} 10. Nf3 {[%clk 0:02:49.1]} 10... Nc6 {[%clk 0:03:03.9]} 11.
e3 {[%clk 0:02:49.2]} 11... Re8 {[%clk 0:03:02.5]} 12. Be2 {[%clk 0:02:44.4]}
12... Bb7 {[%clk 0:03:02.5]} 13. O-O {[%clk 0:02:35.6]} 13... Nxe5 {[%clk
0:03:03]} 14. Nxe5 {[%clk 0:02:04.1]} 14... Rxe5 {[%clk 0:03:03.9]} 15. f4
{[%clk 0:02:04.7]} 15... Re7 {[%clk 0:03:02.7]} 16. Bf3 {[%clk 0:02:04.6]} 16...
c6 {[%clk 0:02:50.4]} 17. e4 {[%clk 0:01:54]} 17... d6 {[%clk 0:02:29.5]} 18.
Kh1 {[%clk 0:01:46.3]} 18... c5 {[%clk 0:02:00.7]} 19. a3 {[%clk 0:01:42]} 19...
Bxc3 {[%clk 0:02:00.1]} 20. Qxc3 {[%clk 0:01:42.9]} 20... Bxe4 {[%clk
0:01:59.1]} 21. Bxe4 {[%clk 0:01:42.6]} 21... Rxe4 {[%clk 0:02:00]} 22. Rad1
{[%clk 0:01:43.5]} 22... Qe7 {[%clk 0:01:53.5]} 23. f5 {[%clk 0:01:38.5]} 23...
f6 {[%clk 0:01:48.6]} 24. h3 {[%clk 0:01:31.9]} 24... h6 {[%clk 0:01:38.9]} 25.
Rd3 {[%clk 0:01:21.9]} 25... Rd8 {[%clk 0:01:35.5]} 26. Rfd1 {[%clk 0:01:21.7]}
26... Re5 {[%clk 0:01:34.4]} 27. Rd5 {[%clk 0:01:20.1]} 27... Rxd5 {[%clk
0:01:24.5]} 28. Rxd5 {[%clk 0:01:21]} 28... Qe2 {[%clk 0:01:24.2]} 29. Qd2
{[%clk 0:00:55.1]} 29... Qf1+ {[%clk 0:01:23.7]} 30. Kh2 {[%clk 0:00:54.5]}
30... Re8 {[%clk 0:01:24.6]} 31. Rxd6 {[%clk 0:00:49.6]} 31... Re2 {[%clk
0:00:48.3]} 32. Qd5+ {[%clk 0:00:21.2]} 32... Kh7 {[%clk 0:00:47]} 33. Re6
{[%clk 0:00:12.7]} 33... Qf4+ {[%clk 0:00:44.9]} 34. Kh1 {[%clk 0:00:12.3]}
34... Rxb2 {[%clk 0:00:34.7]} 35. Re1 {[%clk 0:00:12.1]} 35... c4 {[%clk
0:00:29.6]} 36. Qe4 {[%clk 0:00:08.8]} 36... Qf2 {[%clk 0:00:24]} 37. a4 {[%clk
0:00:07.4]} 37... c3 {[%clk 0:00:22.1]} 38. a5 {[%clk 0:00:03.7]} 38... c2
{[%clk 0:00:21.9]} 39. a6 {[%clk 0:00:04.2]} 39... Qxe1+ {[%clk 0:00:21.9]} 40.
Qxe1 {[%clk 0:00:03.9]} 40... Rb1 {[%clk 0:00:22.2]} 0-1

[Event "Early-Titled-Tuesday-Blitz-August-29-2023"]
[Site "Chess.com"]
[Date "2023.08.29"]
[Round "10"]
[White "GeorgiosSouleidis"]
[Black "Tomytoteph"]
[Result "0-1"]
[WhiteElo "2560"]
[BlackElo "2627"]
[TimeControl "180+1"]
[EndTime "9:53:35 PDT"]
[Termination "Tomytoteph won on time"]

1. e4 {[%clk 0:02:57.3]} 1... c5 {[%clk 0:02:59.3]} 2. Nf3 {[%clk 0:02:56.9]}
2... g6 {[%clk 0:02:59.7]} 3. Bc4 {[%clk 0:02:56]} 3... Bg7 {[%clk 0:02:59.4]}
4. O-O {[%clk 0:02:56.3]} 4... Nc6 {[%clk 0:02:58.8]} 5. Re1 {[%clk 0:02:56.7]}
5... d6 {[%clk 0:02:58.7]} 6. c3 {[%clk 0:02:56.4]} 6... e5 {[%clk 0:02:38]} 7.
h3 {[%clk 0:02:56.1]} 7... Nge7 {[%clk 0:02:34.7]} 8. Na3 {[%clk 0:02:48.6]}
8... O-O {[%clk 0:02:33.8]} 9. Nc2 {[%clk 0:02:48.6]} 9... a6 {[%clk 0:02:33.3]}
10. a4 {[%clk 0:02:48.4]} 10... Rb8 {[%clk 0:02:32.9]} 11. d4 {[%clk 0:02:47.4]}
11... b5 {[%clk 0:02:30.1]} 12. axb5 {[%clk 0:02:48.3]} 12... axb5 {[%clk
0:02:30.2]} 13. Bf1 {[%clk 0:02:47.1]} 13... b4 {[%clk 0:02:09.6]} 14. dxc5
{[%clk 0:02:44.3]} 14... dxc5 {[%clk 0:02:09.5]} 15. Qxd8 {[%clk 0:02:38.2]}
15... Rxd8 {[%clk 0:02:09]} 16. Be3 {[%clk 0:02:38.9]} 16... bxc3 {[%clk
0:02:00.4]} 17. bxc3 {[%clk 0:02:38.9]} 17... Rb3 {[%clk 0:01:51.7]} 18. Ra3
{[%clk 0:02:34.6]} 18... Rb2 {[%clk 0:01:51.6]} 19. Rc1 {[%clk 0:02:25.4]} 19...
f5 {[%clk 0:01:49.4]} 20. Bxc5 {[%clk 0:02:10.7]} 20... h6 {[%clk 0:01:31.8]}
21. Bc4+ {[%clk 0:01:46.4]} 21... Kh7 {[%clk 0:01:30.4]} 22. exf5 {[%clk
0:01:21.1]} 22... Bxf5 {[%clk 0:01:31.3]} 23. Ne3 {[%clk 0:01:20.2]} 23... Be4
{[%clk 0:01:31.2]} 24. Ra2 {[%clk 0:01:04.8]} 24... Rxa2 {[%clk 0:01:08.6]} 25.
Bxa2 {[%clk 0:01:05.7]} 25... Nf5 {[%clk 0:01:05.9]} 26. Nxf5 {[%clk 0:00:39.5]}
26... gxf5 {[%clk 0:01:03.2]} 27. Be6 {[%clk 0:00:38.1]} 27... Kg6 {[%clk
0:00:58.8]} 28. Ra1 {[%clk 0:00:28.5]} 28... Kf6 {[%clk 0:00:56.3]} 29. Bc4
{[%clk 0:00:26.1]} 29... h5 {[%clk 0:00:35.9]} 30. Ra6 {[%clk 0:00:26.1]} 30...
Rd1+ {[%clk 0:00:35.1]} 31. Kh2 {[%clk 0:00:26]} 31... Bh6 {[%clk 0:00:35.5]}
32. Be3 {[%clk 0:00:14.7]} 32... Bxe3 {[%clk 0:00:33.5]} 33. fxe3 {[%clk
0:00:15.6]} 33... Rc1 {[%clk 0:00:32.4]} 34. Bb5 {[%clk 0:00:15.4]} 34... Rxc3
{[%clk 0:00:32.4]} 35. Nd2 {[%clk 0:00:15.9]} 35... Bd5 {[%clk 0:00:30.5]} 36.
Kg1 {[%clk 0:00:11.9]} 36... Rc2 {[%clk 0:00:29.4]} 37. Kf1 {[%clk 0:00:09.5]}
37... Rxd2 {[%clk 0:00:07.6]} 38. Bxc6 {[%clk 0:00:09.2]} 38... Bc4+ {[%clk
0:00:06.7]} 39. Kg1 {[%clk 0:00:08.5]} 39... Bxa6 {[%clk 0:00:06.4]} 0-1

[Event "Early-Titled-Tuesday-Blitz-August-29-2023"]
[Site "Chess.com"]
[Date "2023.08.29"]
[Round "10"]
[White "only_strong_moves"]
[Black "garfield_pg"]
[Result "1-0"]
[WhiteElo "2524"]
[BlackElo "2381"]
[TimeControl "180+1"]
[EndTime "9:53:35 PDT"]
[Termination "only_strong_moves won on time"]

1. d4 {[%clk 0:03:00.9]} 1... d5 {[%clk 0:02:59.6]} 2. Nc3 {[%clk 0:03:01.4]}
2... e6 {[%clk 0:03:00.3]} 3. Bf4 {[%clk 0:03:01.9]} 3... c5 {[%clk 0:02:59.4]}
4. e3 {[%clk 0:03:01.9]} 4... a6 {[%clk 0:03:00]} 5. Nf3 {[%clk 0:03:00.5]} 5...
Nc6 {[%clk 0:03:00.5]} 6. Be2 {[%clk 0:03:00.6]} 6... Bd6 {[%clk 0:02:59.1]} 7.
O-O {[%clk 0:02:58.7]} 7... Nge7 {[%clk 0:02:51.8]} 8. dxc5 {[%clk 0:02:49.2]}
8... Bxc5 {[%clk 0:02:52.7]} 9. Na4 {[%clk 0:02:49.2]} 9... Ba7 {[%clk
0:02:46.1]} 10. c4 {[%clk 0:02:47.9]} 10... dxc4 {[%clk 0:02:42.5]} 11. Qc2
{[%clk 0:02:43.5]} 11... b5 {[%clk 0:02:40.4]} 12. Rad1 {[%clk 0:02:42.1]} 12...
Qa5 {[%clk 0:02:31.8]} 13. Nc3 {[%clk 0:02:41.5]} 13... O-O {[%clk 0:01:59.2]}
14. Bd6 {[%clk 0:02:40.5]} 14... Rd8 {[%clk 0:01:49.6]} 15. h4 {[%clk
0:02:24.9]} 15... Nf5 {[%clk 0:01:18.4]} 16. Bh2 {[%clk 0:02:24.2]} 16... Bb7
{[%clk 0:01:15.7]} 17. g4 {[%clk 0:02:24]} 17... Nb4 {[%clk 0:00:49.4]} 18. Qb1
{[%clk 0:02:20.2]} 18... Ne7 {[%clk 0:00:29.2]} 19. Ng5 {[%clk 0:02:19]} 19...
g6 {[%clk 0:00:29.8]} 20. a3 {[%clk 0:02:15.4]} 20... Nbd5 {[%clk 0:00:27.9]}
21. Nce4 {[%clk 0:02:15.2]} 21... Qb6 {[%clk 0:00:25.1]} 22. b4 {[%clk
0:01:33.9]} 22... h6 {[%clk 0:00:22]} 23. Nxf7 {[%clk 0:00:51.9]} 23... Kxf7
{[%clk 0:00:21.5]} 24. Nc5 {[%clk 0:00:45]} 24... Qc6 {[%clk 0:00:17.5]} 25. e4
{[%clk 0:00:40.5]} 25... Nf6 {[%clk 0:00:14.2]} 26. Nxb7 {[%clk 0:00:32.8]}
26... Qxb7 {[%clk 0:00:13.3]} 27. Bf3 {[%clk 0:00:27.9]} 27... Qb6 {[%clk
0:00:10.5]} 28. e5 {[%clk 0:00:23]} 28... Nfd5 {[%clk 0:00:10.7]} 29. Kh1 {[%clk
0:00:15.2]} 29... Rac8 {[%clk 0:00:08.4]} 30. Qc1 {[%clk 0:00:15]} 30... Kg7
{[%clk 0:00:08]} 31. Be4 {[%clk 0:00:11.8]} 31... Nc7 {[%clk 0:00:07.7]} 32. Rd6
{[%clk 0:00:10.1]} 32... Qb8 {[%clk 0:00:04]} 33. Bf4 {[%clk 0:00:07.1]} 33...
Ne8 {[%clk 0:00:03.4]} 34. Bxh6+ {[%clk 0:00:06.5]} 34... Kh7 {[%clk 0:00:02.6]}
35. Rxe6 {[%clk 0:00:06.5]} 35... Rc6 {[%clk 0:00:01.9]} 36. Rxe7+ {[%clk
0:00:06.3]} 36... Kg8 {[%clk 0:00:01.7]} 37. Bxc6 {[%clk 0:00:05.8]} 37... Qc8
{[%clk 0:00:01.9]} 38. Bf3 {[%clk 0:00:03.4]} 1-0

[Event "Early-Titled-Tuesday-Blitz-August-29-2023"]
[Site "Chess.com"]
[Date "2023.08.29"]
[Round "10"]
[White "nassimzrikem"]
[Black "Mihaiionescu1"]
[Result "1-0"]
[WhiteElo "2132"]
[BlackElo "2460"]
[TimeControl "180+1"]
[EndTime "9:53:35 PDT"]
[Termination "nassimzrikem won on time"]

1. d4 {[%clk 0:03:00.9]} 1... Nf6 {[%clk 0:02:58.9]} 2. Nf3 {[%clk 0:02:59.2]}
2... b6 {[%clk 0:02:52.7]} 3. e3 {[%clk 0:02:58.9]} 3... Bb7 {[%clk 0:02:52.9]}
4. Bd3 {[%clk 0:02:59.6]} 4... g6 {[%clk 0:02:51.9]} 5. Nbd2 {[%clk 0:02:59.8]}
5... Bg7 {[%clk 0:02:52.4]} 6. c3 {[%clk 0:02:57.8]} 6... O-O {[%clk 0:02:52.1]}
7. e4 {[%clk 0:02:57.8]} 7... d6 {[%clk 0:02:52.3]} 8. O-O {[%clk 0:02:57.4]}
8... Nbd7 {[%clk 0:02:52.4]} 9. Re1 {[%clk 0:02:57.8]} 9... c5 {[%clk
0:02:51.4]} 10. e5 {[%clk 0:02:57.9]} 10... dxe5 {[%clk 0:02:36.6]} 11. dxe5
{[%clk 0:02:49.5]} 11... Ng4 {[%clk 0:02:34.9]} 12. e6 {[%clk 0:02:49.7]} 12...
fxe6 {[%clk 0:02:32.6]} 13. h3 {[%clk 0:02:27.6]} 13... Nge5 {[%clk 0:02:30.3]}
14. Be4 {[%clk 0:02:09.5]} 14... Bxe4 {[%clk 0:02:26.6]} 15. Rxe4 {[%clk
0:02:10.4]} 15... Qc7 {[%clk 0:01:59.4]} 16. Qe2 {[%clk 0:02:07.3]} 16... Nxf3+
{[%clk 0:01:51.9]} 17. Nxf3 {[%clk 0:02:06.6]} 17... e5 {[%clk 0:01:48.7]} 18.
Bg5 {[%clk 0:02:06]} 18... Rf7 {[%clk 0:01:46.1]} 19. Qc4 {[%clk 0:01:56.1]}
19... Bf6 {[%clk 0:01:23.8]} 20. Rd1 {[%clk 0:01:50.5]} 20... Qc6 {[%clk
0:01:14.6]} 21. a4 {[%clk 0:01:35.1]} 21... a6 {[%clk 0:01:13.2]} 22. Re2 {[%clk
0:00:47.5]} 22... b5 {[%clk 0:00:55.6]} 23. Qh4 {[%clk 0:00:47.1]} 23... bxa4
{[%clk 0:00:48.1]} 24. Red2 {[%clk 0:00:46.9]} 24... Ra7 {[%clk 0:00:46.3]} 25.
Qg4 {[%clk 0:00:45]} 25... e6 {[%clk 0:00:42.9]} 26. Bxf6 {[%clk 0:00:38.8]}
26... Nxf6 {[%clk 0:00:41]} 27. Nxe5 {[%clk 0:00:38.7]} 27... Nxg4 {[%clk
0:00:36.6]} 28. Nxc6 {[%clk 0:00:38.4]} 28... Rac7 {[%clk 0:00:36.4]} 29. Nd8
{[%clk 0:00:33]} 29... Ne5 {[%clk 0:00:17.6]} 30. Nxf7 {[%clk 0:00:32.9]} 30...
Rxf7 {[%clk 0:00:17.7]} 31. Re2 {[%clk 0:00:30.8]} 31... Nc4 {[%clk 0:00:14.5]}
32. Ra1 {[%clk 0:00:26.8]} 32... Nb6 {[%clk 0:00:03.5]} 33. Rxe6 {[%clk
0:00:25.7]} 33... Rb7 {[%clk 0:00:04.2]} 34. Rc6 {[%clk 0:00:24.7]} 34... c4
{[%clk 0:00:03.4]} 35. Kf1 {[%clk 0:00:22.4]} 35... Kf7 {[%clk 0:00:02.1]} 36.
Ke1 {[%clk 0:00:22]} 36... Ke7 {[%clk 0:00:02.6]} 37. Kd1 {[%clk 0:00:21.2]}
37... Kd7 {[%clk 0:00:03.1]} 38. Rf6 {[%clk 0:00:19.2]} 38... Kc8 {[%clk
0:00:02.1]} 39. Rf8+ {[%clk 0:00:19.3]} 39... Kc7 {[%clk 0:00:02.3]} 40. Rf7+
{[%clk 0:00:19.8]} 40... Kc6 {[%clk 0:00:02.4]} 41. Rxb7 {[%clk 0:00:19.4]}
41... Kxb7 {[%clk 0:00:03.3]} 42. Kc2 {[%clk 0:00:19.9]} 42... Kc6 {[%clk
0:00:04.2]} 43. Re1 {[%clk 0:00:20.1]} 43... Nd5 {[%clk 0:00:01.8]} 44. Re6+
{[%clk 0:00:20]} 44... Kb5 {[%clk 0:00:01.8]} 45. Re8 {[%clk 0:00:19.5]} 45...
Kb6 {[%clk 0:00:01.4]} 46. Rh8 {[%clk 0:00:19.3]} 1-0